fUSD/lending_fUSD_20250124
["ID","MTS","AMOUNT","RATE_DAILY","PERIOD"]
[350186368,1737677452266,-500.0,0.00017259,2]
[350186369,1737677452275,-500.0,0.00017259,2]
[350186370,1737677452285,-500.0,0.00017259,2]
[350186371,1737677452294,-502.52562453,0.00017259,2]
[350186372,1737677452303,-500.0,0.00017259,2]
[350186373,1737677452313,-500.0,0.00017259,2]
[350186374,1737677452326,-1000.0,0.00017259,2]
[350186375,1737677452335,-500.0,0.00017259,2]
[350186376,1737677452344,-500.0,0.00017259,2]
[350186377,1737677452353,-500.0,0.00017259,2]
[350186378,1737677452363,-500.0,0.00017259,2]
[350186379,1737677452372,-500.0,0.00017259,2]
[350186380,1737677452383,-500.0,0.00017259,2]
[350186381,1737677452392,-882.03,0.00017259,2]
[350186382,1737677452401,-500.0,0.00017259,2]
[350186383,1737677452412,-500.0,0.00017259,2]
[350186384,1737677452422,-500.0,0.00017259,2]
[350186385,1737677452432,-500.0,0.00017259,2]
[350186386,1737677452441,-1787.72,0.00017259,2]
[350186387,1737677452449,-500.0,0.00017259,2]
[350186388,1737677452459,-628.84,0.00017259,2]
[350186389,1737677452468,-500.0,0.00017259,2]
[350186390,1737677452476,-500.0,0.00017259,2]
[350186391,1737677452486,-500.0,0.00017259,2]
[350186392,1737677452496,-500.0,0.00017259,2]
[350186393,1737677452504,-500.0,0.00017259,2]
[350186394,1737677452514,-500.0,0.00017259,2]
[350186395,1737677452523,-500.0,0.00017259,2]
[350186396,1737677452533,-500.0,0.00017259,2]
[350186397,1737677452542,-500.0,0.00017259,2]
[350186398,1737677452551,-500.0,0.00017259,2]
[350186399,1737677452560,-500.0,0.00017259,2]
[350186400,1737677452569,-511.1,0.00017259,2]
[350186401,1737677452578,-500.0,0.00017259,2]
[350186402,1737677452587,-500.0,0.00017259,2]
[350186403,1737677452596,-798.14,0.00017259,2]
[350186404,1737677452605,-500.0,0.00017259,2]
[350186405,1737677452614,-500.0,0.00017259,2]
[350186406,1737677452623,-985.163036,0.00017259,2]
[350186407,1737677452632,-500.0,0.00017259,2]
[350186408,1737677452642,-500.0,0.00017259,2]
[350186409,1737677452653,-985.163036,0.00017259,2]
[350186410,1737677452663,-1453.94,0.00017259,2]
[350186411,1737677452671,-500.0,0.00017259,2]
[350186412,1737677452790,-500.0,0.00017259,2]
[350186413,1737677452800,-500.0,0.00017259,2]
[350186414,1737677452809,-500.0,0.00017259,2]
[350186415,1737677452819,-151.0,0.00017259,2]
[350186416,1737677452828,-500.0,0.00017259,2]
[350186417,1737677452837,-266.15,0.00017259,2]
[350186418,1737677452847,-555.39,0.00017259,2]
[350186419,1737677452856,-500.0,0.00017259,2]
[350186420,1737677452867,-500.0,0.00017259,2]
[350186421,1737677452876,-500.0,0.00017259,2]
[350186422,1737677452885,-500.0,0.00017259,2]
[350186423,1737677452895,-500.0,0.00017259,2]
[350186424,1737677452904,-500.0,0.00017259,2]
[350186425,1737677452917,-500.0,0.00017259,2]
[350186426,1737677452927,-500.0,0.00017259,2]
[350186427,1737677452938,-501.84707381,0.00017259,2]
[350186428,1737677452948,-500.0,0.00017259,2]
[350186429,1737677452958,-500.0,0.00017259,2]
[350186430,1737677452967,-500.0,0.00017259,2]
[350186431,1737677452976,-500.0,0.00017259,2]
[350186432,1737677452985,-500.0,0.00017259,2]
[350186433,1737677452996,-500.0,0.00017259,2]
[350186434,1737677453006,-500.0,0.00017259,2]
[350186435,1737677453016,-500.0,0.00017259,2]
[350186436,1737677453025,-500.0,0.00017259,2]
[350186437,1737677453036,-500.0,0.00017259,2]
[350186438,1737677453045,-500.0,0.00017259,2]
[350186439,1737677453055,-500.0,0.00017259,2]
[350186440,1737677453065,-500.0,0.00017259,2]
[350186441,1737677453074,-500.0,0.00017259,2]
[350186442,1737677453084,-500.0,0.00017259,2]
[350186443,1737677453093,-500.0,0.00017259,2]
[350186444,1737677453103,-500.0,0.00017259,2]
[350186445,1737677453111,-165.798156,0.00017259,2]
[350186446,1737677453121,-500.0,0.00017259,2]
[350186447,1737677453130,-500.0,0.00017259,2]
[350186448,1737677453139,-500.0,0.00017259,2]
[350186449,1737677453149,-500.0,0.00017259,2]
[350186450,1737677453162,-500.0,0.00017259,2]
[350186451,1737677453172,-500.0,0.00017259,2]
[350186452,1737677453181,-500.0,0.00017259,2]
[350186453,1737677453191,-500.0,0.00017259,2]
[350186454,1737677453201,-151.0,0.00017259,2]
[350186455,1737677453211,-500.0,0.00017259,2]
[350186456,1737677453220,-500.0,0.00017259,2]
[350186457,1737677453230,-151.0,0.00017259,2]
[350186458,1737677453240,-500.0,0.00017259,2]
[350186459,1737677453249,-506.63146169,0.00017259,2]
[350186460,1737677453259,-500.0,0.00017259,2]
[350186461,1737677453268,-500.0,0.00017259,2]
[350186462,1737677453279,-500.0,0.00017259,2]
[350186463,1737677453290,-500.0,0.00017259,2]
[350186464,1737677453299,-500.0,0.00017259,2]
[350186465,1737677453309,-500.0,0.00017259,2]
[350186466,1737677453320,-516.90598037,0.00017259,2]
[350186467,1737677453329,-500.0,0.00017259,2]
[350186468,1737677453339,-500.0,0.00017259,2]
[350186469,1737677453350,-851.55,0.00017259,2]
[350186470,1737677453360,-500.0,0.00017259,2]
[350186471,1737677453371,-500.0,0.00017259,2]
[350186472,1737677453381,-2044.29,0.00017259,2]
[350186473,1737677453391,-500.0,0.00017259,2]
[350186474,1737677453400,-500.0,0.00017259,2]
[350186475,1737677453411,-500.0,0.00017259,2]
[350186476,1737677453420,-500.0,0.00017259,2]
[350186477,1737677453429,-500.0,0.00017259,2]
[350186478,1737677453439,-500.0,0.00017259,2]
[350186479,1737677453448,-500.0,0.00017259,2]
[350186480,1737677453458,-500.0,0.00017259,2]
[350186481,1737677453467,-500.0,0.00017259,2]
[350186482,1737677453477,-500.0,0.00017259,2]
[350186483,1737677453487,-500.0,0.00017259,2]
[350186484,1737677453496,-500.0,0.00017259,2]
[350186485,1737677453506,-941.3,0.00017259,2]
[350186486,1737677453515,-500.0,0.00017259,2]
[350186487,1737677453525,-500.0,0.00017259,2]
[350186488,1737677453536,-500.0,0.00017259,2]
[350186489,1737677453545,-500.0,0.00017259,2]
[350186490,1737677453554,-500.0,0.00017259,2]
[350186491,1737677453564,-352.31199816,0.0001726,2]
[350186492,1737677453573,-302.78711425,0.0001726,2]
[350186493,1737677453583,-226.109898,0.0001726,2]
[350186494,1737677453592,-226.109898,0.0001726,2]
[350186495,1737677453601,-151.0,0.0001726,2]
[350186496,1737677453611,-491.19344581,0.0001726,2]
[350186497,1737677453620,-500.0,0.0001726,2]
[350186498,1737677453630,-500.0,0.0001726,2]
[350186499,1737677453639,-500.0,0.0001726,2]
[350186500,1737677453649,-255.127159,0.0001726,2]
[350186501,1737677453658,-500.0,0.0001726,2]
[350186502,1737677453668,-789.02,0.0001726,2]
[350186503,1737677453677,-500.0,0.0001726,2]
[350186504,1737677453687,-152.961161,0.0001726,2]
[350186505,1737677453696,-500.0,0.0001726,2]
[350186506,1737677453705,-500.0,0.0001726,2]
[350186507,1737677453715,-500.0,0.0001726,2]
[350186508,1737677453724,-836.78,0.0001726,2]
[350186509,1737677453734,-500.0,0.0001726,2]
[350186510,1737677453743,-524.69,0.0001726,2]
[350186511,1737677453752,-556.71,0.0001726,2]
[350186512,1737677453762,-336.74250086,0.0001726,2]
[350186513,1737677453771,-500.0,0.0001726,2]
[350186514,1737677453781,-500.0,0.0001726,2]
[350186515,1737677453792,-1114.91,0.0001726,2]
[350186516,1737677453802,-500.0,0.0001726,2]
[350186517,1737677453812,-1089.95,0.0001726,2]
[350186518,1737677453821,-510.61,0.0001726,2]
[350186519,1737677453831,-1241.3,0.0001726,2]
[350186520,1737677453841,-990.43,0.0001726,2]
[350186521,1737677453851,-500.0,0.0001726,2]
[350186522,1737677453860,-658.08,0.0001726,2]
[350186523,1737677453870,-1007.53,0.0001726,2]
[350186524,1737677453880,-627.09967616,0.0001726,2]
[350186525,1737677453889,-500.0,0.0001726,2]
[350186526,1737677453899,-751.01,0.0001726,2]
[350186527,1737677453909,-1841.81,0.0001726,2]
[350186528,1737677453923,-500.0,0.0001726,2]
[350186529,1737677453932,-986.92,0.0001726,2]
[350186530,1737677453942,-578.89,0.0001726,2]
[350186531,1737677453953,-500.0,0.0001726,2]
[350186532,1737677453963,-500.0,0.0001726,2]
[350186533,1737677453973,-500.0,0.0001726,2]
[350186534,1737677453983,-500.0,0.0001726,2]
[350186535,1737677453995,-591.97,0.0001726,2]
[350186536,1737677454005,-500.0,0.0001726,2]
[350186537,1737677454015,-1238.24,0.0001726,2]
[350186538,1737677454024,-500.0,0.0001726,2]
[350186539,1737677454034,-500.0,0.0001726,2]
[350186540,1737677454044,-500.0,0.0001726,2]
[350186541,1737677454053,-500.0,0.0001726,2]
[350186542,1737677454063,-525.82,0.0001726,2]
[350186543,1737677454073,-500.0,0.0001726,2]
[350186544,1737677454083,-500.0,0.0001726,2]
[350186545,1737677454093,-500.0,0.0001726,2]
[350186546,1737677454102,-500.0,0.0001726,2]
[350186547,1737677454112,-941.12,0.0001726,2]
[350186548,1737677454121,-524.7,0.0001726,2]
[350186549,1737677454131,-969.89,0.0001726,2]
[350186550,1737677454140,-500.0,0.0001726,2]
[350186551,1737677454150,-819.74,0.0001726,2]
[350186552,1737677454159,-500.0,0.0001726,2]
[350186553,1737677454169,-500.0,0.0001726,2]
[350186554,1737677454179,-500.0,0.0001726,2]
[350186555,1737677454189,-500.0,0.0001726,2]
[350186556,1737677454199,-500.0,0.0001726,2]
[350186557,1737677454208,-677.26,0.0001726,2]
[350186558,1737677454217,-500.0,0.0001726,2]
[350186559,1737677454227,-500.0,0.0001726,2]
[350186560,1737677454237,-870.66,0.0001726,2]
[350186561,1737677454247,-500.0,0.0001726,2]
[350186562,1737677454256,-500.0,0.0001726,2]
[350186563,1737677454266,-500.0,0.0001726,2]
[350186564,1737677454276,-500.0,0.0001726,2]
[350186565,1737677454286,-500.0,0.0001726,2]
[350186566,1737677454296,-500.0,0.0001726,2]
[350186567,1737677454306,-500.0,0.0001726,2]
[350186568,1737677454316,-643.26,0.0001726,2]
[350186569,1737677454326,-507.81,0.0001726,2]
[350186570,1737677454335,-500.0,0.0001726,2]
[350186571,1737677454345,-839.49,0.0001726,2]
[350186572,1737677454354,-500.0,0.0001726,2]
[350186573,1737677454364,-1229.74,0.0001726,2]
[350186574,1737677454374,-500.0,0.0001726,2]
[350186575,1737677454383,-242.74069137,0.0001726,2]
[350186576,1737677454393,-736.88,0.0001726,2]
[350186577,1737677454402,-500.0,0.0001726,2]
[350186578,1737677454412,-560.36,0.0001726,2]
[350186579,1737677454422,-500.0,0.0001726,2]
[350186580,1737677454431,-500.0,0.0001726,2]
[350186581,1737677454441,-500.0,0.0001726,2]
[350186582,1737677454450,-500.0,0.0001726,2]
[350186583,1737677454460,-500.0,0.0001726,2]
[350186584,1737677454469,-826.37,0.0001726,2]
[350186585,1737677454479,-500.0,0.0001726,2]
[350186586,1737677454489,-3903.0,0.00017347,2]
[350186587,1737677454499,-150.0,0.00017347,2]
[350186588,1737677454508,-1177.691,0.00017347,2]
[350186589,1737677454518,-616.38132078,0.00017358,2]
[350186590,1737677454528,-500.0,0.00017358,2]
[350186591,1737677454539,-500.0,0.00017358,2]
[350186592,1737677454550,-1000.0,0.00017381,2]
[350186593,1737677454560,-9990.24833046,0.00017421,2]
[350186594,1737677454569,-151.0,0.00017421,2]
[350186595,1737677454579,-173.094276,0.00017421,2]
[350186596,1737677454588,-4918.42337442,0.00017421,2]
[350186597,1737677454598,-500.0,0.00017533,2]
[350186598,1737677454607,-500.0,0.00017533,2]
[350186599,1737677454616,-500.0,0.00017533,2]
[350186600,1737677454626,-500.0,0.00017533,2]
[350186601,1737677454635,-500.0,0.00017533,2]
[350186602,1737677454645,-500.0,0.00017533,2]
[350186603,1737677454655,-151.0,0.00017533,2]
[350186604,1737677454664,-500.0,0.00017533,2]
[350186605,1737677454674,-500.0,0.00017533,2]
[350186606,1737677454683,-500.0,0.00017533,2]
[350186607,1737677454693,-500.0,0.00017533,2]
[350186608,1737677454702,-500.0,0.00017533,2]
[350186609,1737677454712,-500.0,0.00017533,2]
[350186610,1737677454721,-500.0,0.00017533,2]
[350186611,1737677454731,-500.0,0.00017533,2]
[350186612,1737677454741,-500.0,0.00017533,2]
[350186613,1737677454750,-500.0,0.00017533,2]
[350186614,1737677454760,-500.0,0.00017533,2]
[350186615,1737677454770,-500.0,0.00017533,2]
[350186616,1737677454779,-500.0,0.00017533,2]
[350186617,1737677454790,-500.0,0.00017533,2]
[350186618,1737677454800,-500.0,0.00017533,2]
[350186619,1737677454809,-500.0,0.00017533,2]
[350186620,1737677454818,-500.0,0.00017533,2]
[350186621,1737677454827,-568.1,0.00017533,2]
[350186622,1737677454838,-1675.15,0.00017533,2]
[350186623,1737677454848,-500.0,0.00017533,2]
[350186624,1737677454857,-500.0,0.00017533,2]
[350186625,1737677454867,-500.0,0.00017533,2]
[350186626,1737677454876,-1000.0,0.00017533,2]
[350186627,1737677454886,-500.0,0.00017533,2]
[350186628,1737677454895,-500.0,0.00017533,2]
[350186629,1737677454905,-500.0,0.00017533,2]
[350186630,1737677454916,-215.4,0.00017533,2]
[350186631,1737677454926,-882.03,0.00017533,2]
[350186632,1737677454936,-500.0,0.00017533,2]
[350186633,1737677454946,-500.0,0.00017533,2]
[350186634,1737677454955,-500.0,0.00017533,2]
[350186635,1737677454965,-1787.72,0.00017533,2]
[350186636,1737677454974,-628.84,0.00017533,2]
[350186637,1737677454983,-500.0,0.00017533,2]
[350186638,1737677454994,-632.13,0.00017533,2]
[350186639,1737677455005,-500.0,0.00017533,2]
[350186640,1737677455015,-500.0,0.00017533,2]
[350186641,1737677455024,-511.1,0.00017533,2]
[350186642,1737677455034,-230.7,0.00017533,2]
[350186643,1737677455044,-500.0,0.00017533,2]
[350186644,1737677455054,-798.14,0.00017533,2]
[350186645,1737677455063,-500.0,0.00017533,2]
[350186646,1737677455184,-985.163036,0.00017533,2]
[350186647,1737677455196,-500.0,0.00017533,2]
[350186648,1737677455207,-500.0,0.00017533,2]
[350186649,1737677455218,-985.163036,0.00017533,2]
[350186650,1737677455228,-1453.94,0.00017533,2]
[350186651,1737677455238,-500.0,0.00017533,2]
[350186652,1737677455248,-500.0,0.00017533,2]
[350186653,1737677455258,-500.0,0.00017533,2]
[350186654,1737677455268,-500.0,0.00017533,2]
[350186655,1737677455277,-151.0,0.00017533,2]
[350186656,1737677455288,-500.0,0.00017533,2]
[350186657,1737677455298,-555.39,0.00017533,2]
[350186658,1737677455307,-500.0,0.00017533,2]
[350186659,1737677455316,-500.0,0.00017533,2]
[350186660,1737677455326,-500.0,0.00017533,2]
[350186661,1737677455336,-500.0,0.00017533,2]
[350186662,1737677455345,-626.52,0.00017533,2]
[350186663,1737677455354,-500.0,0.00017533,2]
[350186664,1737677455364,-500.0,0.00017533,2]
[350186665,1737677455374,-500.0,0.00017533,2]
[350186666,1737677455384,-500.0,0.00017533,2]
[350186667,1737677455394,-500.0,0.00017533,2]
[350186668,1737677455403,-500.0,0.00017533,2]
[350186669,1737677455414,-500.0,0.00017533,2]
[350186670,1737677455425,-501.13959826,0.00017533,2]
[350186671,1737677455436,-500.0,0.00017533,2]
[350186672,1737677455446,-500.0,0.00017533,2]
[350186673,1737677455456,-500.0,0.00017533,2]
[350186674,1737677455466,-500.0,0.00017533,2]
[350186675,1737677455478,-500.0,0.00017533,2]
[350186676,1737677455490,-500.0,0.00017533,2]
[350186677,1737677455499,-224.32949397,0.00017533,2]
[350186678,1737677455510,-500.0,0.00017533,2]
[350186679,1737677455520,-500.0,0.00017533,2]
[350186680,1737677455531,-500.0,0.00017533,2]
[350186681,1737677455541,-500.0,0.00017533,2]
[350186682,1737677455551,-500.0,0.00017533,2]
[350186683,1737677455560,-500.0,0.00017533,2]
[350186684,1737677455570,-500.0,0.00017533,2]
[350186685,1737677455581,-500.0,0.00017533,2]
[350186686,1737677455590,-500.0,0.00017533,2]
[350186687,1737677455600,-500.0,0.00017533,2]
[350186688,1737677455609,-500.0,0.00017533,2]
[350186689,1737677455619,-500.0,0.00017533,2]
[350186690,1737677455629,-500.0,0.00017533,2]
[350186691,1737677455639,-508.62510652,0.00017533,2]
[350186692,1737677455650,-500.0,0.00017533,2]
[350186693,1737677455660,-500.0,0.00017533,2]
[350186694,1737677455670,-500.0,0.00017533,2]
[350186695,1737677455681,-159.43,0.00017533,2]
[350186696,1737677455692,-500.0,0.00017533,2]
[350186697,1737677455707,-500.0,0.00017533,2]
[350186698,1737677455718,-851.55,0.00017533,2]
[350186699,1737677455728,-500.0,0.00017533,2]
[350186700,1737677455738,-500.0,0.00017533,2]
[350186701,1737677455747,-2044.29,0.00017533,2]
[350186702,1737677455758,-500.0,0.00017533,2]
[350186703,1737677455768,-502.19923924,0.00017533,2]
[350186704,1737677455777,-500.0,0.00017533,2]
[350186705,1737677455789,-500.0,0.00017533,2]
[350186706,1737677455799,-500.0,0.00017533,2]
[350186707,1737677455809,-500.0,0.00017533,2]
[350186708,1737677455819,-500.0,0.00017533,2]
[350186709,1737677455830,-500.0,0.00017533,2]
[350186710,1737677455840,-449.91068416,0.00017533,2]
[350186711,1737677455850,-500.0,0.00017533,2]
[350186712,1737677455860,-500.0,0.00017533,2]
[350186713,1737677455871,-941.3,0.00017533,2]
[350186714,1737677455880,-500.0,0.00017533,2]
[350186715,1737677455891,-500.0,0.00017533,2]
[350186716,1737677455900,-417.02,0.00017533,2]
[350186717,1737677455913,-500.0,0.00017533,2]
[350186718,1737677455922,-182.62190517,0.00017534,2]
[350186719,1737677455932,-500.0,0.00017534,2]
[350186720,1737677455943,-272.44,0.00017534,2]
[350186721,1737677455953,-255.127159,0.00017534,2]
[350186722,1737677455962,-500.0,0.00017534,2]
[350186723,1737677455973,-789.02,0.00017534,2]
[350186724,1737677455985,-500.0,0.00017534,2]
[350186725,1737677455995,-500.0,0.00017534,2]
[350186726,1737677456009,-500.0,0.00017534,2]
[350186727,1737677456022,-836.78,0.00017534,2]
[350186728,1737677456032,-524.69,0.00017534,2]
[350186729,1737677456044,-556.71,0.00017534,2]
[350186730,1737677456054,-164.154822,0.00017534,2]
[350186731,1737677456063,-1114.91,0.00017534,2]
[350186732,1737677456074,-1089.95,0.00017534,2]
[350186733,1737677456084,-510.61,0.00017534,2]
[350186734,1737677456094,-1241.3,0.00017534,2]
[350186735,1737677456104,-990.43,0.00017534,2]
[350186736,1737677456115,-658.08,0.00017534,2]
[350186737,1737677456124,-1007.53,0.00017534,2]
[350186738,1737677456134,-751.01,0.00017534,2]
[350186739,1737677456143,-1841.81,0.00017534,2]
[350186740,1737677456153,-500.0,0.00017534,2]
[350186741,1737677456163,-986.92,0.00017534,2]
[350186742,1737677456172,-578.89,0.00017534,2]
[350186743,1737677456182,-500.0,0.00017534,2]
[350186744,1737677456191,-500.0,0.00017534,2]
[350186745,1737677456201,-591.97,0.00017534,2]
[350186746,1737677456211,-1238.24,0.00017534,2]
[350186747,1737677456220,-500.0,0.00017534,2]
[350186748,1737677456230,-525.82,0.00017534,2]
[350186749,1737677456239,-500.0,0.00017534,2]
[350186750,1737677456249,-151.0,0.00017534,2]
[350186751,1737677456259,-175.075142,0.00017534,2]
[350186752,1737677456269,-500.0,0.00017534,2]
[350186753,1737677456278,-941.12,0.00017534,2]
[350186754,1737677456290,-969.89,0.00017534,2]
[350186755,1737677456300,-819.74,0.00017534,2]
[350186756,1737677456310,-500.0,0.00017534,2]
[350186757,1737677456319,-500.0,0.00017534,2]
[350186758,1737677456329,-677.26,0.00017534,2]
[350186759,1737677456339,-500.0,0.00017534,2]
[350186760,1737677456349,-870.66,0.00017534,2]
[350186761,1737677456359,-500.0,0.00017534,2]
[350186762,1737677456368,-643.26,0.00017534,2]
[350186763,1737677456377,-507.81,0.00017534,2]
[350186764,1737677456387,-839.49,0.00017534,2]
[350186765,1737677456396,-1229.74,0.00017534,2]
[350186766,1737677456405,-500.0,0.00017534,2]
[350186767,1737677456414,-736.88,0.00017534,2]
[350186768,1737677456424,-560.36,0.00017534,2]
[350186769,1737677456434,-500.0,0.00017534,2]
[350186770,1737677456444,-500.0,0.00017534,2]
[350186771,1737677456454,-500.0,0.00017534,2]
[350186772,1737677456463,-500.0,0.00017534,2]
[350186773,1737677456473,-826.37,0.00017534,2]
[350186774,1737677456483,-151.0,0.00017607,2]
[350186775,1737677456492,-414.228958,0.00017699,2]
[350186776,1737677456501,-414.228958,0.00017699,2]
[350186777,1737677456510,-9990.24833046,0.00017716,2]
[350186778,1737677456519,-4918.42337442,0.00017717,2]
[350186779,1737677456529,-847.81,0.0001773,2]
[350186780,1737677456540,-160.832,0.0001776,2]
[350186781,1737677456550,-1000.0,0.00017802,2]
[350186782,1737677456560,-1000.0,0.00017802,2]
[350186783,1737677456570,-1000.0,0.00017802,2]
[350186784,1737677456579,-1000.0,0.00017802,2]
[350186785,1737677456589,-1000.0,0.00017802,2]
[350186786,1737677456598,-1000.0,0.00017802,2]
[350186787,1737677456608,-1000.0,0.00017802,2]
[350186788,1737677456618,-1000.0,0.00017802,2]
[350186789,1737677456627,-1000.0,0.00017802,2]
[350186790,1737677456637,-393.79216786,0.00017802,2]
[350186791,1737677456646,-500.0,0.00017807,2]
[350186792,1737677456655,-500.0,0.00017807,2]
[350186793,1737677456664,-226.109898,0.00017807,2]
[350186794,1737677456673,-500.0,0.00017807,2]
[350186795,1737677456682,-226.109898,0.00017807,2]
[350186796,1737677456693,-151.0,0.00017807,2]
[350186797,1737677456702,-500.0,0.00017807,2]
[350186798,1737677456711,-500.0,0.00017807,2]
[350186799,1737677456720,-500.0,0.00017807,2]
[350186800,1737677456729,-500.0,0.00017807,2]
[350186801,1737677456738,-151.8976384,0.00017807,2]
[350186802,1737677456747,-500.0,0.00017807,2]
[350186803,1737677456756,-500.0,0.00017807,2]
[350186804,1737677456766,-500.0,0.00017807,2]
[350186805,1737677456775,-500.0,0.00017807,2]
[350186806,1737677456784,-500.0,0.00017807,2]
[350186807,1737677456794,-500.0,0.00017807,2]
[350186808,1737677456803,-151.0,0.00017807,2]
[350186809,1737677456812,-500.0,0.00017807,2]
[350186810,1737677456821,-500.0,0.00017807,2]
[350186811,1737677456829,-173.094276,0.00017807,2]
[350186812,1737677456838,-500.0,0.00017807,2]
[350186813,1737677456847,-500.0,0.00017807,2]
[350186814,1737677456856,-224.39428595,0.00017807,2]
[350186815,1737677456864,-500.0,0.00017807,2]
[350186816,1737677456874,-500.0,0.00017807,2]
[350186817,1737677456883,-500.0,0.00017807,2]
[350186818,1737677456891,-500.0,0.00017807,2]
[350186819,1737677456908,-568.1,0.00017807,2]
[350186820,1737677456922,-1675.15,0.00017807,2]
[350186821,1737677456932,-500.0,0.00017807,2]
[350186822,1737677456942,-500.0,0.00017807,2]
[350186823,1737677456952,-167.182073,0.00017807,2]
[350186824,1737677456963,-500.0,0.00017807,2]
[350186825,1737677456974,-882.03,0.00017807,2]
[350186826,1737677456983,-500.0,0.00017807,2]
[350186827,1737677456996,-1787.72,0.00017807,2]
[350186828,1737677457007,-628.84,0.00017807,2]
[350186829,1737677457017,-500.0,0.00017807,2]
[350186830,1737677457027,-500.0,0.00017807,2]
[350186831,1737677457038,-511.1,0.00017807,2]
[350186832,1737677457050,-798.14,0.00017807,2]
[350186833,1737677457059,-500.0,0.00017807,2]
[350186834,1737677457069,-1453.94,0.00017807,2]
[350186835,1737677457078,-500.0,0.00017807,2]
[350186836,1737677457087,-500.0,0.00017807,2]
[350186837,1737677457097,-555.39,0.00017807,2]
[350186838,1737677457106,-500.0,0.00017807,2]
[350186839,1737677457116,-417.43,0.00017807,2]
[350186840,1737677457125,-500.0,0.00017807,2]
[350186841,1737677457135,-167.56,0.00017807,2]
[350186842,1737677457144,-500.0,0.00017807,2]
[350186843,1737677457153,-500.0,0.00017807,2]
[350186844,1737677457164,-500.0,0.00017807,2]
[350186845,1737677457174,-500.0,0.00017807,2]
[350186846,1737677457183,-500.0,0.00017807,2]
[350186847,1737677457193,-500.0,0.00017807,2]
[350186848,1737677457203,-500.0,0.00017807,2]
[350186849,1737677457213,-851.55,0.00017807,2]
[350186850,1737677457222,-500.0,0.00017807,2]
[350186851,1737677457232,-2044.29,0.00017807,2]
[350186852,1737677457242,-500.0,0.00017807,2]
[350186853,1737677457252,-500.0,0.00017807,2]
[350186854,1737677457261,-500.0,0.00017807,2]
[350186855,1737677457271,-941.3,0.00017807,2]
[350186856,1737677457281,-238.677938,0.00017808,2]
[350186857,1737677457293,-500.0,0.00017808,2]
[350186858,1737677457302,-255.127159,0.00017808,2]
[350186859,1737677457312,-500.0,0.00017808,2]
[350186860,1737677457322,-789.02,0.00017808,2]
[350186861,1737677457435,-500.0,0.00017808,2]
[350186862,1737677457445,-152.961161,0.00017808,2]
[350186863,1737677457454,-500.0,0.00017808,2]
[350186864,1737677457465,-500.0,0.00017808,2]
[350186865,1737677457474,-836.78,0.00017808,2]
[350186866,1737677457483,-524.69,0.00017808,2]
[350186867,1737677457493,-556.71,0.00017808,2]